Cogmind - Beta 13 @@@ ROGUE MODE // 2024.06.04 @ 17:24:24 Player: Lunace Result: Destroyed by P-80 Master with Gamma Rifle Performance ------------- Evolutions (7) 3500 Regions Visited (12) 2400 Robots Destroyed (126) 630 Value Destroyed (5849) 5849 Prototype IDs (22) 440 Alien Tech Used (0) 0 Bonus (2413) 2413 TOTAL SCORE: 15232 Bonus ------- High Alert Combat Kills 957 Follower Combat Kills 1002 Scanned by Researcher 500 Friendly Fire -46 Cogmind --------- Core Integrity 0/1300 Matter 290/300 Energy 229/260 System Corruption 8% Temperature Cool (0) Movement Rolling (115) Ox1 Location -3/Testing Parts ------- > --- POWER (2) -------- Light Antimatter Reactor Light Quantum Reactor > --- PROPULSION (6) --- Myomer Leg Armored Huge Wheel > --- UTILITY (11) ----- Small Storage Unit Medium Storage Unit Advanced Target Analyzer Core Analyzer Improved Armor Integrity Analyzer Graphene Brace Advanced System Shield Advanced Component Analysis Suite System Guard Advanced Corruption Screen > --- WEAPON (2) ------- Helical Railgun Nanosword > --- INVENTORY (10) --- Advanced Heat Sink Advanced Corruption Screen Gamma Rifle Quantum Rifle Railgun Hardcell Cannon Z-bomb Delivery System Peak State ------------ > --- POWER ------------ Antimatter Reactor Antimatter Reactor > --- PROPULSION ------- Heavy Siege Treads Heavy Siege Treads Heavy Siege Treads > --- UTILITY ---------- Advanced Heat Sink Medium Storage Unit Advanced Target Analyzer Advanced Target Analyzer Advanced Target Analyzer Core Analyzer Improved Armor Integrity Analyzer Graphene Brace Experimental Thermal Shield Advanced Force Field Component Analysis Suite > --- WEAPON ----------- Helical Railgun Helical Railgun > --- INVENTORY -------- Advanced Heat Sink Quantum Capacitor Gamma Rifle Quantum Rifle Heavy Dispersion Rifle KE Penetrator Hardcell Cannon Hardcell Cannon Gravity Flail [Rating: 147] Favorites ----------- Power Micro Antimatter Reactor Engine Ion Engine Power Core Neutrino Core Reactor Micro Antimatter Reactor Propulsion Heavy Siege Treads Treads Heavy Siege Treads Leg Flexi-carbon Leg Wheel Armored Huge Wheel Hover Unit Combat Gravmag System Flight Unit Cesium-ion Thruster Utility Advanced Heat Sink Device Advanced Heat Sink Storage Medium Storage Unit Processor Advanced Signal Interpreter Hackware Advanced System Shield Protection Hardened Light Armor Plating Weapon Helical Railgun Energy Gun Particle Gun Energy Cannon Nova Cannon Ballistic Gun Helical Railgun Ballistic Cannon Hardcell Cannon Launcher Improved Proton Missile Launcher Special Weapon Improved Remote Datajack Impact Weapon Powered Hammer Slashing Weapon Nanosword Build | -11 -10 -9 -8 -7 -6 -6 -6 -5 -4 -4 -3 -3 ------- Run | Yrd Mat Mat Mat Fac Fac Low Low Fac Fac Ext Res Tes Slots Evolved 14 | . . 2 2 2 2 . . 2 2 . 2 . Power 1 | . . . . . . . . . 1 . . . Propulsion 4 | . . 1 1 . . . . 2 . . . . Utility 9 | . . 1 1 2 2 . . . 1 . 2 . Weapon . | . . . . . . . . . . . . . Parts Attached 228 | 7 6 15 7 25 6 1 . 18 4 40 55 44 Power 32 | 1 2 2 1 2 1 . . 4 1 3 8 7 Engine 12 | 1 2 2 . 1 1 . . 4 1 . . . Core 5 | . . . 1 1 . . . . . 3 . . Reactor 15 | . . . . . . . . . . . 8 7 Propulsion 72 | 2 . 5 4 12 2 . . 8 . 12 12 15 Treads 10 | 2 . 4 . . . . . . . . 4 . Leg 27 | . . . . . . . . . . 12 7 8 Wheel 1 | . . . . . . . . . . . . 1 Hover 21 | . . . . 6 2 . . 7 . . . 6 Flight 13 | . . 1 4 6 . . . 1 . . 1 . Utility 80 | 2 2 5 2 8 3 1 . 5 1 13 22 16 Device 53 | 1 1 3 1 5 2 . . 3 1 10 15 11 Storage 6 | 1 1 . 1 . . 1 . . . . 1 1 Processor 15 | . . . . 3 1 . . 2 . . 6 3 Hackware 1 | . . . . . . . . . . . . 1 Protection 5 | . . 2 . . . . . . . 3 . . Artifact . | . . . . . . . . . . . . . Weapon 44 | 2 2 3 . 3 . . . 1 2 12 13 6 Energy Gun 14 | 1 2 3 . . . . . . . 1 3 4 Energy Cannon 2 | . . . . . . . . . 1 . 1 . Ballistic Gun 8 | 1 . . . 1 . . . . . 2 3 1 Ballistic Cannon 6 | . . . . . . . . . . 3 3 . Launcher 6 | . . . . 1 . . . . 1 3 1 . Special Weapon 4 | . . . . . . . . 1 . 3 . . Impact Weapon 2 | . . . . 1 . . . . . . 1 . Slashing Weapon 2 | . . . . . . . . . . . 1 1 Piercing Weapon . | . . . . . . . . . . . . . Special Melee Weapon . | . . . . . . . . . . . . . Unidentified Prototypes 12 | . . 1 . 5 . . . 1 . . 3 2 Parts Lost 84 | . . 1 4 17 . . 2 3 2 22 6 27 Power 10 | . . . . 2 . . . . 1 2 . 5 Propulsion 37 | . . 1 2 10 . . 1 2 . 8 3 10 Utility 28 | . . . 1 3 . . 1 1 1 9 3 9 Weapon 9 | . . . 1 2 . . . . . 3 . 3 Highest Loss Streak 18 | . . 1 4 15 . . 2 2 1 18 2 13 To Critical Strikes . | . . . . . . . . . . . . . Average Slot Usage (%) 83 | . 100 96 75 67 72 92 93 89 75 88 79 80 Engine 3 | . 14 11 7 . . 6 6 4 8 2 . . Reactor 3 | . . . . . . . . . . . 8 5 Treads 8 | . 28 31 15 . . . . . . . 9 . Leg 4 | . . . . . . . . . . 23 5 4 Hover 7 | . . . . 2 20 20 20 30 26 4 . 16 Flight 2 | . . . 4 21 6 6 6 1 . . . . Device 19 | . 14 10 12 12 12 20 20 15 18 19 26 20 Storage 4 | . 14 11 9 5 . 5 6 5 5 5 1 4 Processor 12 | . . . . 14 25 26 26 22 10 7 16 14 Protection 2 | . . 9 9 1 . . . . . 7 . . Energy Gun 4 | . 16 22 15 . . . . . . . 1 2 Ballistic Gun 2 | . 11 . . . . . . . . 2 3 . Naked Turns . | . . . . . . . . . . . . . Heaviest Build 89 | 14 22 29 30 20 16 26 26 35 48 89 79 61 Greatest Support 210 | 40 40 66 43 21 26 26 26 56 47 140 210 85 Greatest Overweight (x) 2 | . . 1 1 . . . 1 1 1 2 . 1 Average Overweight (x) . | . . . . . . . . . . . . . Largest Inventory Capacity 10 | 8 10 10 10 8 5 10 10 10 10 10 10 10 Average Capacity 8 | 7 9 10 9 7 5 9 10 10 10 9 6 10 Most Carried 10 | 2 7 10 10 8 5 5 3 8 6 10 10 10 Average Carried 6 | 1 3 8 8 5 3 3 3 5 5 8 6 8 Final Capacity 10 | 8 10 10 8 5 5 10 10 10 10 5 10 10 Final Carried 10 | 2 7 8 5 3 5 3 3 6 6 5 10 7 Class Distribution -------------------- 45% | Mutant 37% | Scavenger-Mutant 6% | Sprinter 5% | Commander-Mutant 3% | Infiltrator-Sprinter Dominant Class ---------------- Mutant | -10/Materials Mutant | -9/Materials Mutant | -8/Materials Sprinter | -7/Factory Mutant | -6/Factory Mutant | -6/Lower Caves Mutant | -6/Lower Caves Mutant | -5/Factory Infiltrator-Sprinter | -4/Factory Commander-Mutant | -4/Extension Scavenger-Mutant | -3/Research Mutant | -3/Testing Resources | -11 -10 -9 -8 -7 -6 -6 -6 -5 -4 -4 -3 -3 ----------- Run | Yrd Mat Mat Mat Fac Fac Low Low Fac Fac Ext Res Tes Matter Collected 4277 | 275 66 160 10 525 34 47 . 203 41 813 1707 396 Remotely 570 | 92 56 . . 422 . . . . . . . . Salvage Created 6915 | 99 243 923 . 353 34 . . 155 . 354 3550 1204 Parts 308 | 6 16 54 . 16 1 . . 6 . 10 150 49 Haulers Intercepted 2 | . . 2 . . . . . . . . . . Recyclers Shooed 4 | . . . . 1 . . . . . . 3 . Parts Field Recycled . | . . . . . . . . . . . . . Retrieved Matter . | . . . . . . . . . . . . . Parts Self-Destructed 2 | . . . . . . 2 . . . . . . Prevented 2 | . . . . . . 1 1 . . . . . Kills | -11 -10 -9 -8 -7 -6 -6 -6 -5 -4 -4 -3 -3 ------- Run | Yrd Mat Mat Mat Fac Fac Low Low Fac Fac Ext Res Tes Combat Hostiles Destroyed 88 | . 5 20 . 4 1 . . . . 4 38 16 Melee 21 | . . . . 1 1 . . . . . 3 16 Guns 52 | . 5 19 . . . . . . . 2 26 . Cannons 9 | . . . . . . . . . . 2 7 . AOE 3 | . . . . 3 . . . . . . . . Classes Destroyed 17 | 2 2 4 . 2 . . . . . 3 3 1 Worker 14 | . . . . 1 . . . 8 . . 5 . Tunneler 3 | 1 . . . . . . . . . . 2 . Hauler 2 | . . 2 . . . . . . . . . . Recycler 10 | 1 . 1 . 3 . . . . . 1 4 . Mechanic 1 | . . . . . . . . . . . 1 . Operator 1 | . . . . . . . . . . 1 . . Watcher 7 | . 1 1 . 1 . . . . . . 3 1 Swarmer 11 | . . 4 . 1 . . . . . . 2 4 Grunt 32 | . 5 13 . 2 . . . . . . 8 4 Brawler 4 | . . . . . . . . . . . 4 . Duelist 2 | . . 1 . . . . . . . . 1 . Researcher 1 | . . . . . . . . . . . . 1 Sentry 9 | . . 2 . . . . . . . 1 3 3 Hunter 10 | . . . . . . . . . . . 6 4 Programmer 16 | . . . . 1 1 . . . . 1 12 1 Behemoth 3 | . . . . . . . . . . 1 2 . Assembled 1 | . . . . . . . . . . 1 . . Best Kill Streak 8 | 2 2 7 . 4 1 . . 5 . 3 8 7 Combat Bots Only 7 | . 2 7 . 2 1 . . . . 2 7 7 Max Kills in Single Turn 3 | 1 1 2 . 3 1 . . 1 . 1 2 1 Gunslinging 1 | . . 1 . . . . . . . . . . Exploded 1 | . . . . 1 . . . . . . . . Melee 1 | . . . . 1 1 . . . . . 1 1 Uniques/NPCs Destroyed . | . . . . . . . . . . . . . Combat | -11 -10 -9 -8 -7 -6 -6 -6 -5 -4 -4 -3 -3 -------- Run | Yrd Mat Mat Mat Fac Fac Low Low Fac Fac Ext Res Tes Hostile Shots Fired 1359 | . 25 110 29 216 43 . 40 12 20 189 347 328 Missed 480 | . 4 29 13 104 27 . 25 4 7 70 85 112 Damage Taken 15629 | . 274 924 242 1578 137 . 190 415 239 3573 3781 4276 Core 3272 | . 27 143 . 603 22 . 61 71 18 1012 352 963 Absorbed by Shields 1855 | . . . . 108 . . . . . 325 1414 8 Reduced by Siege Mode 867 | . . . . . . . . . . . 867 . Ignored by Resistances 576 | . . . . . . . . . . . 514 62 Regen/Repaired (Parts) 69 | . . 69 . . . . . . . . . . Core Remaining (%) 69 | 100 89 64 100 13 . . 90 92 . 10 . . Volleys Fired 338 | 5 21 58 12 8 . . . 5 8 80 120 21 Largest 2 | 2 2 2 2 1 . . . 1 1 2 2 1 Hottest 178 | 70 130 130 121 33 . . . 7 81 98 178 94 Shots Fired 553 | 10 42 114 17 8 . . . 5 8 96 230 23 Gun 405 | 10 42 114 17 . . . . . . 28 171 23 Cannon 97 | . . . . . . . . . 8 33 56 . Launcher 18 | . . . . 8 . . . . . 7 3 . Special 33 | . . . . . . . . 5 . 28 . . Kinetic 276 | 5 16 . . . . . . . . 59 194 2 Thermal 208 | 5 26 114 17 . . . . . . . 33 13 Explosive 8 | . . . . 8 . . . . . . . . Electromagnetic 28 | . . . . . . . . . 8 9 3 8 Robot Hit Streak 45 | 5 13 17 7 5 . . . 4 2 14 45 5 Robot Miss Streak 5 | 2 3 4 1 2 . . . 1 2 3 5 4 Penetration Max 2 | . . . . . . . . . . . 2 . Secondary Targets 8 | . 2 2 . . . . . . . . 4 . Max Gunslinging Chain 1 | . 1 1 . . . . . . . . 1 . Capacitor 19 | . . . . . . . . . . . 1 18 Shots Hit Robots 488 | 6 32 77 11 8 6 . . 16 4 71 192 65 Core Hits 237 | 4 14 39 3 14 1 . . 2 1 22 106 31 Critical Kills 18 | . . . . . 1 . . 1 . . 16 . Critical Parts Destroyed 22 | . . . . . 1 . . 2 . . 19 . Critical Strikes 61 | . 1 4 1 . 2 . . 3 . 1 40 9 Burn 6 | . 1 4 1 . . . . . . . . . Meltdown 1 | . . . . . . . . . . . 1 . Destroy 35 | . . . . . . . . . . . 35 . Blast 4 | . . . . . . . . . . 1 3 . Smash 5 | . . . . . 2 . . 3 . . . . Sever 10 | . . . . . . . . . . . 1 9 Melee Attacks 111 | . . . . 4 9 . . 16 1 . 11 70 Impact 30 | . . . . 4 9 . . 16 1 . . . Slashing 81 | . . . . . . . . . . . 11 70 Piercing . | . . . . . . . . . . . . . Sneak Attacks 9 | . . . . . . . . 9 . . . . Combat Hostiles . | . . . . . . . . . . . . . Follow-up Attacks . | . . . . . . . . . . . . . Damage Inflicted 16225 | 63 361 1233 188 798 291 . 30 1136 182 1684 6951 3308 Guns 7352 | 63 361 1233 188 . . . . . . 490 4688 329 Cannons 2617 | . . . . . . . . . 182 847 1588 . Explosions 1283 | . . . . 668 . . . . . 347 268 . Melee 4927 | . . . . 130 291 . . 1136 . . 407 2963 Ramming 46 | . . . . . . . 30 . . . . 16 Kinetic 6806 | 26 99 . . . . . . . . 1302 5321 58 Thermal 2844 | 37 262 1233 188 . . . . . . . 955 169 Explosive 845 | . . . . 668 . . . . . . 177 . Electromagnetic 757 | . . . . . . . . . 182 382 91 102 Impact 1557 | . . . . 130 291 . . 1136 . . . . Slashing 3370 | . . . . . . . . . . . 407 2963 Piercing . | . . . . . . . . . . . . . Highest Corruption 16 | . . . . 5 . . . . . . 15 16 Average Corruption 8 | . . . . 3 . . . . . . 4 15 Corruption Purged 11 | . . . . 9 . . . . . . 2 . Corruption Blocked 13 | . . . . . . . . 3 . . . 10 Effects 69 | . . . . 4 . . . . . . 31 34 Message Errors 20 | . . . . 2 . . . . . . 12 6 Matter Fused 17 | . . . . 2 . . . . . . 7 8 Heat Flow Errors 7 | . . . . . . . . . . . 3 4 Energy Discharges 8 | . . . . . . . . . . . 3 5 Parts Rejected 1 | . . . . . . . . . . . . 1 Data Loss (minor) 8 | . . . . . . . . . . . 1 7 Misfires 3 | . . . . . . . . . . . 1 2 Alerts 3 | . . . . . . . . . . . 3 . Misdirections 1 | . . . . . . . . . . . . 1 Weapon Failures 1 | . . . . . . . . . . . 1 . Overload Shots . | . . . . . . . . . . . . . Overflow Damage 944 | . . . . 96 95 . . 556 . . 52 145 Projectiles 52 | . . . . . . . . . . . 52 . Explosions 77 | . . . . 77 . . . . . . . . Melee 815 | . . . . 19 95 . . 556 . . . 145 Knockbacks 12 | . . . . 2 1 . . 1 . 2 6 . Impact 3 | . . . . 1 1 . . 1 . . . . Kinetic 7 | . . . . . . . . . . 2 5 . Secondary 2 | . . . . 1 . . . . . . 1 . Self-Inflicted Damage 200 | . . . . 93 . . 15 . . 17 75 . Shots 5 | . . . . 2 . . . . . 2 1 . Rammed 1 | . . . . . . . 1 . . . . . Targets Rammed 9 | . . . . . . . 1 . . . . 8 Kicked 8 | . . . . . . . . . . . . 8 Crushed . | . . . . . . . . . . . . . Highest Temperature 308 | 90 268 221 72 12 . . . 16 200 66 276 308 Average Temperature 90 | 40 113 102 25 3 . . . 10 81 28 103 112 Received Heat Transfer 1850 | . 156 477 126 201 24 . 51 18 76 196 355 170 Effects 3 | . 1 . . . . . . . . . . 2 Energy Bleed 3 | . 1 . . . . . . . . . . 2 Siege Activations 12 | . . . . . . . . . . . 12 . Total Turns 195 | . . . . . . . . . . . 195 . Longest Duration 40 | . . . . . . . . . . . 40 . Robots Corrupted 2 | . . . . . . . . . . 1 1 . Combat Hostiles 1 | . . . . . . . . . . . 1 . Parts Fried 13 | . . . . . . . . 6 . 3 4 . Impact Corruptions 18 | . . . . 1 4 . . 13 . . . . Robots Melted 2 | . . 1 . . . . . . . . 1 . Combat Hostiles 2 | . . 1 . . . . . . . . 1 . Parts Melted 6 | 1 . 4 . . . . . . . . 1 . Heat Transferred 5883 | 111 814 3293 555 . . . . . . . 925 185 Parts Sabotaged 4 | . . . . . . . . . . . 4 . Parts Stolen . | . . . . . . . . . . . . . Parts Stripped . | . . . . . . . . . . . . . Power Chain Reactions 1 | . . . . 1 . . . . . . . . Alert | -11 -10 -9 -8 -7 -6 -6 -6 -5 -4 -4 -3 -3 ------- Run | Yrd Mat Mat Mat Fac Fac Low Low Fac Fac Ext Res Tes Peak Influence 891 | 10 153 489 220 633 360 . . 481 460 684 891 696 Initial 489 | . 6 64 206 100 243 . . 101 235 225 136 489 Average 354 | 1 67 254 199 344 297 . . 312 368 417 367 577 Maximum Alert Level 3 | . . 2 1 2 1 . . 2 2 2 3 2 Low Security (%) 21 | 100 100 28 21 22 . . . 39 . . 17 . Level 1 37 | . . 60 78 32 100 . . 4 59 56 46 . Level 2 36 | . . 10 . 44 . . . 56 40 43 23 100 Level 3 4 | . . . . . . . . . . . 12 . Level 4 . | . . . . . . . . . . . . . Level 5 . | . . . . . . . . . . . . . High Security . | . . . . . . . . . . . . . Max Security . | . . . . . . . . . . . . . Squads Dispatched 30 | . 2 3 . 4 . . 1 2 . 2 10 6 Investigation 5 | . 1 1 . 2 . . . 1 . . . . Extermination 7 | . . . . 1 . . . . . . 4 2 Reinforcement 8 | . 1 2 . 1 . . . 1 . 1 . 2 Assault 7 | . . . . . . . 1 . . 1 3 2 Garrison 3 | . . . . . . . . . . . 3 . Intercept . | . . . . . . . . . . . . . Searches Triggered 1 | . . . . 1 . . . . . . . . Construction Impeded . | . . . . . . . . . . . . . Haulers Reinforced 1 | . . . . . . . . 1 . . . . Active Scanning Responses . | . . . . . . . . . . . . . Cargo Convoy Interrupts . | . . . . . . . . . . . . . Stealth | -11 -10 -9 -8 -7 -6 -6 -6 -5 -4 -4 -3 -3 --------- Run | Yrd Mat Mat Mat Fac Fac Low Low Fac Fac Ext Res Tes Distress Signals 9 | . . 2 . 1 . . . . . 4 2 . Communications Jammed . | . . . . . . . . . . . . . Distress Signals . | . . . . . . . . . . . . . Times Spotted 270 | . 7 28 11 57 4 3 14 3 8 44 60 31 Peak Tracking Total 18 | . 2 5 11 18 3 4 13 2 3 11 5 6 Tactical Retreats 26 | . . 1 1 13 1 2 . 1 1 2 1 3 Traps | -11 -10 -9 -8 -7 -6 -6 -6 -5 -4 -4 -3 -3 ------- Run | Yrd Mat Mat Mat Fac Fac Low Low Fac Fac Ext Res Tes Traps Triggered 13 | . 1 1 . 6 . . . . . 2 1 2 Indirectly 2 | . . . . . . . . . . 1 1 . Trap Hack Attempts . | . . . . . . . . . . . . . Triggered . | . . . . . . . . . . . . . Disarmed . | . . . . . . . . . . . . . Reprogrammed . | . . . . . . . . . . . . . Reused . | . . . . . . . . . . . . . Traps Extracted . | . . . . . . . . . . . . . Installed . | . . . . . . . . . . . . . Triggered 2 | . . . . . . 1 1 . . . . . Machines | -11 -10 -9 -8 -7 -6 -6 -6 -5 -4 -4 -3 -3 ---------- Run | Yrd Mat Mat Mat Fac Fac Low Low Fac Fac Ext Res Tes Machines Disabled 23 | . . 1 . 1 . . . 10 1 3 4 3 Max in Single Turn 1 | . . 1 . 1 . . . . . 1 1 1 Energy Cycler 2 | . . . . . . . . . . 2 . . Machines Repaired . | . . . . . . . . . . . . . Machines Dismantled . | . . . . . . . . . . . . . Machines Sabotaged . | . . . . . . . . . . . . . Overloaded Fab Kills 2 | . . . . 2 . . . . . . . . Hacking | -11 -10 -9 -8 -7 -6 -6 -6 -5 -4 -4 -3 -3 --------- Run | Yrd Mat Mat Mat Fac Fac Low Low Fac Fac Ext Res Tes Machines Accessed 35 | . 3 3 1 10 3 . . 2 3 1 3 6 Terminals 19 | . 2 1 1 6 1 . . 1 3 1 . 3 Fabricators 6 | . . . . 3 . . . 1 . . 1 1 Repair Stations 3 | . . 1 . 1 . . . . . . . 1 Recycling Units 3 | . 1 . . . 1 . . . . . 1 . Scanalyzers 4 | . . 1 . . 1 . . . . . 1 1 Garrison Access . | . . . . . . . . . . . . . Total Hacks 81 | . 8 9 2 22 7 . . 10 7 1 4 11 Successful 33 | . 3 6 1 5 1 . . 7 6 1 1 2 Failed 48 | . 5 3 1 17 6 . . 3 1 . 3 9 Catastrophic 8 | . . . . 4 . . . 1 . . 1 2 Database Lockouts . | . . . . . . . . . . . . . Manual 43 | . 5 3 2 13 1 . . 9 1 . 1 8 Terminals 48 | . 6 3 2 15 1 . . 7 7 1 . 6 Fabricators 11 | . . . . 6 . . . 3 . . 1 1 Repair Stations 6 | . . 4 . 1 . . . . . . . 1 Recycling Units 6 | . 2 . . . 2 . . . . . 2 . Scanalyzers 10 | . . 2 . . 4 . . . . . 1 3 Garrison Access . | . . . . . . . . . . . . . Terminal Hacks 11 | . 1 . 1 1 . . . 2 5 1 . . Record 2 | . . . . 1 . . . . 1 . . . Prototype ID Bank 1 | . . . . . . . . . 1 . . . Open Door 2 | . . . . . . . . . 1 1 . . Level Access Points 1 | . . . 1 . . . . . . . . . Branch Access Points 1 | . . . . . . . . . 1 . . . Terminal Index 1 | . . . . . . . . 1 . . . . Locate Traps 1 | . 1 . . . . . . . . . . . Maintenance Status 1 | . . . . . . . . 1 . . . . Zone Layout 1 | . . . . . . . . . 1 . . . Fabricator Hacks 2 | . . . . . . . . 1 . . . 1 Network Status 2 | . . . . . . . . 1 . . . 1 Repair Station Hacks 2 | . . 2 . . . . . . . . . . Scan Component 1 | . . 1 . . . . . . . . . . Repair 1 | . . 1 . . . . . . . . . . Recycling Unit Hacks . | . . . . . . . . . . . . . Scanalyzer 3 | . . 2 . . 1 . . . . . . . Insert Component 2 | . . 1 . . 1 . . . . . . . Analyze 1 | . . 1 . . . . . . . . . . Garrison Access Hacks . | . . . . . . . . . . . . . Unauthorized Hacks 15 | . 2 2 . 4 . . . 4 1 . 1 1 Terminals 10 | . 1 2 . 3 . . . 2 1 . . 1 Botnet 6 | . 1 . . 2 . . . 1 1 . . 1 Disrupt 1 | . . 1 . . . . . . . . . . Operators 3 | . . 1 . 1 . . . 1 . . . . Fabricators 3 | . . . . 1 . . . 2 . . . . Haulers 1 | . . . . . . . . 1 . . . . Overload 1 | . . . . 1 . . . . . . . . Download 1 | . . . . . . . . 1 . . . . Repair Stations . | . . . . . . . . . . . . . Recycling Units 2 | . 1 . . . . . . . . . 1 . Recyclers 2 | . 1 . . . . . . . . . 1 . Scanalyzers . | . . . . . . . . . . . . . Garrison Access . | . . . . . . . . . . . . . Data Cores Recovered . | . . . . . . . . . . . . . Used . | . . . . . . . . . . . . . Hacking Detections 33 | . 3 3 1 10 3 . . 2 2 . 3 6 Full Trace Events 1 | . . . . 1 . . . . . . . . Feedback Events . | . . . . . . . . . . . . . Feedback Blocked . | . . . . . . . . . . . . . Robot Schematics Acquired . | . . . . . . . . . . . . . Robots Built . | . . . . . . . . . . . . . Authchips . | . . . . . . . . . . . . . Time . | . . . . . . . . . . . . . Total Robot Build Rating . | . . . . . . . . . . . . . Part Schematics Acquired 4 | . . 1 . . . . . 1 . . . 2 Parts Built . | . . . . . . . . . . . . . Authchips . | . . . . . . . . . . . . . Time . | . . . . . . . . . . . . . Total Part Build Rating . | . . . . . . . . . . . . . Parts Repaired 1 | . . 1 . . . . . . . . . . Time 26 | . . 26 . . . . . . . . . . Parts Recycled . | . . . . . . . . . . . . . Recycled Matter . | . . . . . . . . . . . . . Retrieved Matter . | . . . . . . . . . . . . . Retrieved Components . | . . . . . . . . . . . . . Parts Scanalyzed 2 | . . 1 . . 1 . . . . . . . Part Schematics Acquired 1 | . . 1 . . . . . . . . . . Parts Damaged . | . . . . . . . . . . . . . Bothacking | -11 -10 -9 -8 -7 -6 -6 -6 -5 -4 -4 -3 -3 ------------ Run | Yrd Mat Mat Mat Fac Fac Low Low Fac Fac Ext Res Tes Used RIF Installer . | . . . . . . . . . . . . . Robots Hacked . | . . . . . . . . . . . . . Non-combat . | . . . . . . . . . . . . . Combat . | . . . . . . . . . . . . . Robot Hacks Applied . | . . . . . . . . . . . . . Relay Couplers Released 4 | . . . . . . . . . . . 4 . Programmers 4 | . . . . . . . . . . . 4 . Fabnet Peak Effective % . | . . . . . . . . . . . . . Robots Rewired 18 | . . . . . . . . 7 . 11 . . Allies Hacked . | . . . . . . . . . . . . . Hacks Repelled . | . . . . . . . . . . . . . Allies | -11 -10 -9 -8 -7 -6 -6 -6 -5 -4 -4 -3 -3 -------- Run | Yrd Mat Mat Mat Fac Fac Low Low Fac Fac Ext Res Tes Total Allies 22 | . . . . . . . . 7 . 15 . . Largest Group 14 | . . . . . . . . 5 3 14 . . Highest-Rated Group 570 | . . . . . . . . 187 108 570 . . Highest-Rated Ally 51 | . . . . . . . . 49 49 51 . . Total Orders . | . . . . . . . . . . . . . Ally Attacks 138 | . . . . . . . . 15 24 99 . . Total Damage 4730 | . . . . . . . . 1479 679 2572 . . Kills 37 | . . . . . . . . 10 7 20 . . Allies Corrupted 2 | . . . . . . . . . . 2 . . Allies Melted 4 | . . . . . . . . . . 4 . . Intel | -11 -10 -9 -8 -7 -6 -6 -6 -5 -4 -4 -3 -3 ------- Run | Yrd Mat Mat Mat Fac Fac Low Low Fac Fac Ext Res Tes Robot Analysis Total . | . . . . . . . . . . . . . Derelict Logs Recovered 2 | . . . . . . 1 1 . . . . . Drone Launches . | . . . . . . . . . . . . . Drone Recoveries . | . . . . . . . . . . . . . Exploration | -11 -10 -9 -8 -7 -6 -6 -6 -5 -4 -4 -3 -3 ------------- Run | Yrd Mat Mat Mat Fac Fac Low Low Fac Fac Ext Res Tes Turns Passed 5725 | 94 285 677 169 477 153 164 47 381 144 536 1797 801 Spaces Moved 4691 | 45 130 234 139 1159 282 360 100 383 232 316 792 519 Core 83 | 5 . . . 24 . . . . . 15 39 . Treads 891 | 40 130 234 66 . . . . . . . 402 19 Legs 611 | . . . . . . . . . . 205 304 102 Wheels 19 | . . . . . . . . . . . . 19 Hover 1594 | . . . . 8 36 360 100 383 232 96 . 379 Flight 1493 | . . . 73 1127 246 . . . . . 47 . Fastest Speed 26 | 50 160 160 27 26 40 45 45 26 32 32 45 57 Average Speed 75 | 147 160 163 90 30 40 45 45 39 37 91 142 83 Slowest Speed 260 | 160 160 240 240 60 45 45 106 105 100 260 180 197 Overloaded Moves . | . . . . . . . . . . . . . Propulsion Burnouts . | . . . . . . . . . . . . . Robots Hopped 33 | . . . 6 27 . . . . . . . . Cave-ins Triggered . | . . . . . . . . . . . . . Exploration Rate (%) 26 | 4 29 28 25 42 11 72 10 9 6 41 30 40 Regions Visited 12 Branch Regions 4 Pre-discovered Areas . | . . . . . . . . . . . . . Known Exits Taken 8 | . . . 1 1 1 1 1 1 1 1 . . Unknown Exits Taken 4 | 1 1 1 . . . . . . . . 1 . Scrap Searched 2 | . . . . . . 2 . . . . . . Spaces Dug 11 | . . . . 5 . . . 3 . . 1 2 Terrain Destroyed 115 | . . . . 47 . . . 3 . 8 53 4 Melee 5 | . . . . . . . . 3 . . . 2 Projectile 41 | . . . . . . . . . . 8 31 2 AOE 68 | . . . . 47 . . . . . . 21 . Terrain Rammed . | . . . . . . . . . . . . . Walls Destroyed . | . . . . . . . . . . . . . Machines Disabled . | . . . . . . . . . . . . . Actions | -11 -10 -9 -8 -7 -6 -6 -6 -5 -4 -4 -3 -3 --------- Run | Yrd Mat Mat Mat Fac Fac Low Low Fac Fac Ext Res Tes Total 6122 | 60 168 418 158 1230 303 361 101 580 279 489 1209 766 Wait 458 | 2 3 81 . 3 . . 1 76 31 16 176 69 Move 4617 | 44 129 233 128 1106 281 359 99 382 231 315 791 519 Hop 28 | . . . 4 24 . . . . . . . . Pick Up 70 | 2 4 12 4 3 4 . . 3 . 6 20 12 Fast Attach 140 | 7 3 5 1 19 3 . . 14 1 23 35 29 Attach 50 | . . . 5 6 2 1 . 2 3 9 11 11 Detach 25 | . . 1 . 2 1 . . 3 3 6 5 4 Swap 38 | . 3 10 1 . 1 . . 2 . 8 9 4 Drop 109 | . 5 18 3 5 2 1 . 10 1 21 31 12 Fire 338 | 5 21 58 12 8 . . . 5 8 80 120 21 Melee 111 | . . . . 4 9 . . 16 1 . 11 70 Ram 1 | . . . . . . . 1 . . . . . Kick 8 | . . . . . . . . . . . . 8 Crush . | . . . . . . . . . . . . . Escape Stasis 57 | . . . . 50 . . . . . . . 7 Rewire 72 | . . . . . . . . 67 . 5 . . Trap . | . . . . . . . . . . . . . Miscellaneous . | . . . . . . . . . . . . . Route ------- -11/Scrapyard -10/Materials -9/Materials -8/Materials (discovered 3 exits: *Fac x3) -7/Factory (discovered 2 exits: *Fac / *Low) -6/Factory -6/Lower Caves -6/Lower Caves -5/Factory (discovered 2 exits: *Fac x2) -4/Factory (discovered 5 exits: Upp x2 / *Ext x2 / Arm) -4/Extension -3/Research -3/Testing History --------- Turn | Location | Event 10 | -11/Scrapyard | Discovered new exit (range 15) 95 | -11/Scrapyard | Entered Materials 339 | -10/Materials | Discovered new exit (range 13) 366 | -10/Materials | Build established: Mutant 380 | -10/Materials | Entered another Materials area 380 | -9/Materials | Evolved 2 slots: Propulsion x1, Utility x1 528 | -9/Materials | Repaired Lgt. Treads 1004 | -9/Materials | Destroyed 7 combat bots 1013 | -9/Materials | Discovered new exit (range 16) 1057 | -9/Materials | Entered another Materials area 1057 | -8/Materials | Evolved 2 slots: Propulsion x1, Utility x1 1223 | -8/Materials | Identified exit to Factory 1226 | -8/Materials | Entered Factory 1226 | -7/Factory | Evolved 2 slots: Utility x2 1234 | -7/Factory | Lost 4 parts (2n1u1w) 1306 | -7/Factory | Discovered new exit (range 18) 1310 | -7/Factory | Identified exit to Lower Caves 1517 | -7/Factory | Build established: Sprinter 1526 | -7/Factory | Core integrity fell below 50% 1604 | -7/Factory | Lost 15 parts (2p9n3u1w) 1626 | -7/Factory | Search patrols dispatched 1642 | -7/Factory | Core integrity fell below 20% 1690 | -7/Factory | Discovered new exit (range 19) 1700 | -7/Factory | Identified exit to Factory 1703 | -7/Factory | Entered another Factory area 1703 | -6/Factory | Evolved 2 slots: Utility x2 1841 | -6/Factory | Discovered new exit (range 10) 1855 | -6/Factory | Identified exit to Lower Caves 1856 | -6/Factory | Entered Lower Caves 1887 | -6/Lower Caves | Build established: Mutant 1943 | -6/Lower Caves | Spotted B-75 Beast 1984 | -6/Lower Caves | Learned 8 Factory zone layouts 2014 | -6/Lower Caves | Discovered new exit (range 2) 2015 | -6/Lower Caves | Encountered a Warlord checkpoint 2015 | -6/Lower Caves | Identified exit to Lower Caves 2020 | -6/Lower Caves | Entered another Lower Caves area 2022 | -6/Lower Caves | Learned Factory terminal intel 2036 | -6/Lower Caves | Spotted B-75 Beast 2057 | -6/Lower Caves | Attracted the attention of an 0b10 checkpoint 2059 | -6/Lower Caves | Attracted the attention of an 0b10 outpost 2062 | -6/Lower Caves | Discovered new exit (range 10) 2066 | -6/Lower Caves | Identified exit to Factory 2067 | -6/Lower Caves | Entered Factory 2067 | -5/Factory | Evolved 2 slots: Propulsion x2 2068 | -5/Factory | Identified exit to Factory 2069 | -5/Factory | Loaded intel: 26 terminal locations 2122 | -5/Factory | Spotted B-75 Beast 2349 | -5/Factory | Discovered exit to Factory (range 17) 2448 | -5/Factory | Entered another Factory area 2448 | -4/Factory | Accompanied by 3 allies 2448 | -4/Factory | Evolved 2 slots: Power x1, Utility x1 2460 | -4/Factory | Spotted B-86 Titan 2469 | -4/Factory | Identified exit to Upper Caves 2469 | -4/Factory | Identified exit to Extension 2469 | -4/Factory | Identified exit to Armory 2592 | -4/Factory | Entered Extension 2592 | -4/Extension | Accompanied by 1 ally 2609 | -4/Extension | Rescued a captive Derelict 2609 | -4/Extension | Rescued a captive Derelict 2610 | -4/Extension | Energy Cycler disabled 2611 | -4/Extension | Rescued a captive Derelict 2611 | -4/Extension | Rescued a captive Derelict 2613 | -4/Extension | Rescued a captive Derelict 2614 | -4/Extension | Rescued a captive Derelict 2614 | -4/Extension | Rescued a captive Derelict 2615 | -4/Extension | Rescued a captive Derelict 2616 | -4/Extension | Rescued a captive Derelict 2616 | -4/Extension | Rescued a captive Derelict 2618 | -4/Extension | Disrupted transfer network 2618 | -4/Extension | Rescued a captive Derelict 2618 | -4/Extension | Rescued a captive Derelict 2623 | -4/Extension | Rescued a captive Derelict 2627 | -4/Extension | Rescued a captive Derelict 2629 | -4/Extension | Rescued a captive Derelict 2630 | -4/Extension | Rescued a captive Derelict 2681 | -4/Extension | Lost 3 allies 2778 | -4/Extension | Found Launcher Loader 3016 | -4/Extension | Assembled infested ambush trap array 3027 | -4/Extension | Spotted B-86 Titan 3037 | -4/Extension | Spotted B-86 Titan 3065 | -4/Extension | Destroyed B-86 Titan 3076 | -4/Extension | Discovered new exit (range 15) 3092 | -4/Extension | First assault squad dispatched 3093 | -4/Extension | Lost 11 allies 3122 | -4/Extension | Core integrity fell below 50% 3128 | -4/Extension | Core integrity fell below 20% 3128 | -4/Extension | Identified exit to Research 3128 | -4/Extension | Entered Research 3128 | -3/Research | Evolved 2 slots: Utility x2 3150 | -3/Research | Lost 18 parts (2p6n7u3w) 3534 | -3/Research | Build established: Scavenger-Mutant 3786 | -3/Research | Found Prototype Device 3841 | -3/Research | Identified Exp. Thermal Shield 4162 | -3/Research | Spotted B-86 Titan 4185 | -3/Research | Destroyed B-86 Titan 4275 | -3/Research | Spotted B-86 Titan 4289 | -3/Research | Destroyed B-86 Titan 4405 | -3/Research | First assault squad dispatched 4415 | -3/Research | Garrison activated, responded to threat 4541 | -3/Research | Found Quantum Capacitor 4679 | -3/Research | System corruption reached 10% 4757 | -3/Research | Destroyed 7 combat bots 4867 | -3/Research | Discovered new exit (range 15) 4925 | -3/Research | Entered Testing 5038 | -3/Testing | Found Prototype Slashing Weapon 5038 | -3/Testing | Identified Nanosword 5113 | -3/Testing | Found Prototype Energy Gun 5113 | -3/Testing | Identified Tachyon Dispersion Ray 5175 | -3/Testing | First assault squad dispatched 5221 | -3/Testing | Build established: Mutant 5407 | -3/Testing | Lost 4 parts (2p1n1u) 5500 | -3/Testing | Core integrity fell below 50% 5542 | -3/Testing | Destroyed 7 combat bots 5548 | -3/Testing | Lost 6 parts (2n3u1w) 5592 | -3/Testing | Found Prototype Launcher 5605 | -3/Testing | Identified Z-bomb Delivery System 5634 | -3/Testing | Core integrity fell below 20% 5658 | -3/Testing | Scanned by Researcher 5684 | -3/Testing | Lost 13 parts (2p6n4u1w) 5726 | -3/Testing | Destroyed by P-80 Master with Gamma Rifle Last Messages --------------- 05683_ Acquired Arm. Huge Wheel. 05685_ Extracted schematic archive: Enh. Biometal Leg. 05687_ Acquired System Guard. 05689_ Extracted schematic archive: Imp. Matter Neutralizer. 05690_ Acquired 30 matter. 05692_ Acquired Sml. Storage Unit. 05697_ Acquired Adv. Target Analyzer. 05700_ Acquired Gamma Rifle. 05703_ System corrupted: Energy discharge (-88). 05712_ Destroyed Adv. Target Analyzer. 05720_ Destroyed Adv. Heat Sink. 05720_ Imp. Phase Shifter destroyed. 05720_ Myomer Leg destroyed. 05720_ Adv. Corruption Screen intercepted 1% system corruption. 05725_ System corrupted: Energy discharge (-65). 05726_ Adv. Corruption Screen intercepted 1% system corruption. Map ----- +----------------------------------------------------+ | ????????????????????????????????????? | | ????????????????????????????????????? | | ????????????????????????????????????? | | ????????????????????????????????????? | | ????????????????????????????????????? | | ????????????????????????????????????? | | ????????????????????????????????????? | | ????????????????????????????????????? | | ????????????????????????????????????? | | ????????????????????????????????????? | | ????????????????????????????????????? | | ????????????????????????????????????? | | ????????????????????????????????????? | | ????????????????????????????????????? | | ????????????????????????????????????? | | ????????????????????????????????????? | | ???????????????????? ???????????????? | | ???????????????????? ???????????????? | | ???????????????????? ???????????????? | | ????###############? ???????????????? | | ????# ? # ???????????????? | | ????# """ """ # ???????????????? | | ????# " " """" # #???????????????? | | ????# " " """ # #???????????????? | | ????# p # #???????????????? | | ????#%[ p @ # #???????????????? | | ????#+####/######## #?###???????????? | | ????#[## !###### ## #???????????? | | ????#%##= % #???????????? | | ???##%%%% = #???????????? | | ??###[## ! ####???????????? | | ??#|=%##= ##### #??????????????? | | ??#[!!############ ##?????????????? | | ??#####??# [%#= #?????????????? | | ?????????# """=/#==[ #?????????????? | | ?????????# """!%+ !% =#?????????????? | | ?????????# """! #= #?????????????? | | ?????????# !%!#% #?????????????? | | ?????????# [ [### ###?????????????? | | ?????????########?# #?????? ????????? | | ??????????????????# #?????? ????????? | | ??????????????????# #?????? ????????? | | ??????????????????# #?????? ????????? | | ??????????????????# #?????# ????????? | | ??????????????????# #?????# ????????? | | ??????????????????# #?????# ????????? | | ??????????????????# ####?## ######### | | ?????############## #?# | | ?????# # #?# | | ?????# # #?# """""" | +----------------------------------------------------+ Best States ------------- Heat Dissipation 103 Energy Generation 41 Energy Capacity 550 Matter Stores 300 Matter Capacity 300 Sight Range 20 Robot Scan Range 16 Terrain Scan Density 10 Jamming Range 12 Base Temperature (-) 200 Corruption Containment 8 Corruption Block 20 Armor Coverage 675 Resistance: TH 30 Phase Shifting 10 Evasion (%) 72 Melee Accuracy 12 Target Analysis 12 Core Analysis 6 Armor Integrity Analysis 40 Recoil Reduction 6 Particle Charging 25 Defensive Hacking 14 Item Schematics ----------------- Imp. Flight Unit | -9/Materials | Scanalyzed Centrium Leg | -5/Factory | Downloaded Enh. Biometal Leg | -3/Testing | Archive Imp. Matter Neutralizer | -3/Testing | Archive Robot Schematics ------------------ None Fabricated ------------ Nothing Alien Tech Used ----------------- None Achievements -------------- Short-term Sacrifices Challenges ------------ None Game ------ Seed SpectralTrackerCanceller Manual? 0 Play Time 01:45:02 Cumulative 223.5 hours Start 2024.06.03 @ 19:39:21 End 2024.06.04 @ 17:24:24 Sessions 3 Manual Loads 0 Difficulty Rogue Special Mode None Game No. 215 Rogue 210 Adventurer 5 Explorer 0 Win Type - Total 3 Types 2/0/0/1/0/0/0/0/0 Lore% 59 Gallery% 79 Achievement% 59 Wizard Run 0 Options --------- Layout 2 ASCII 0 Keyboard 0 Movement Arrows Keybinds 0 Fullscreen 1 Font 24/Terminus Map View 50x44 Zoom Use 0% Tactical HUD 1 Map Filters NONE Filters NONE Steam 1 RUN: a35f21ab-8723-40cb-a2bb-64e5f4739f71